Cogmind - Beta 11 X8 @@@ ROGUE MODE // 2021.12.10 @ 11:25:41 Player: btmk16 Result: Destroyed by G-34 Mercenary with Small Laser Performance ------------- Evolutions (0) 0 Regions Visited (1) 200 Robots Destroyed (12) 60 Value Destroyed (268) 268 Prototype IDs (0) 0 Alien Tech Used (0) 0 Bonus (0) 0 TOTAL SCORE: 528 Bonus ------- None Cogmind --------- Core Integrity 0/250 Matter 297/300 Energy 100/100 System Corruption 0% Temperature Hot (220) Movement Core (100) Ox1 Location -10/Materials Parts ------- > --- POWER (1) -------- (None) > --- PROPULSION (2) --- (None) > --- UTILITY (2) ------ Small Storage Unit > --- WEAPON (2) ------- (None) > --- INVENTORY (8) ---- Ion Engine Light Treads Light Treads Wheel Compact Wheel Hover Unit Peak State ------------ > --- POWER ------------ Ion Engine > --- PROPULSION ------- Aluminum Leg Aluminum Leg > --- UTILITY ---------- Small Storage Unit > --- WEAPON ----------- Particle Gun Assault Rifle > --- INVENTORY -------- Light Ion Engine Light Treads Light Treads Wheel Compact Wheel Hover Unit EM Pulse Gun Medium Laser [Rating: 7] Favorites ----------- Power Ion Engine Engine Ion Engine Propulsion Aluminum Leg Leg Aluminum Leg Utility Small Storage Unit Storage Small Storage Unit Weapon Assault Rifle Energy Gun Particle Gun Ballistic Gun Assault Rifle Build | -11 -10 ------- Run | Scr Mat Slots Evolved . | . . Power . | . . Propulsion . | . . Utility . | . . Weapon . | . . Parts Attached 4 | . 4 Power 1 | . 1 Engine 1 | . 1 Core . | . . Reactor . | . . Propulsion . | . . Treads . | . . Leg . | . . Wheel . | . . Hover . | . . Flight . | . . Utility . | . . Device . | . . Storage . | . . Processor . | . . Hackware . | . . Protection . | . . Artifact . | . . Weapon 3 | . 3 Energy Gun 3 | . 3 Energy Cannon . | . . Ballistic Gun . | . . Ballistic Cannon . | . . Launcher . | . . Special Weapon . | . . Impact Weapon . | . . Slashing Weapon . | . . Piercing Weapon . | . . Special Melee Weapon . | . . Unidentified Prototypes . | . . Parts Lost 7 | . 7 Power 1 | . 1 Propulsion 2 | . 2 Utility . | . . Weapon 4 | . 4 Highest Loss Streak 4 | . 4 Average Slot Usage (%) 82 | . 82 Engine 13 | . 13 Leg 26 | . 26 Storage 14 | . 14 Energy Gun 14 | . 14 Ballistic Gun 12 | . 12 Naked Turns . | . . Heaviest Build 15 | 14 15 Greatest Support 20 | 20 20 Greatest Overweight (x) 1 | . 1 Average Overweight (x) . | . . Largest Inventory Capacity 8 | . 8 Average Capacity 8 | . 8 Most Carried 8 | . 8 Average Carried 7 | . 7 Final Capacity 8 | 8 8 Final Carried 6 | 6 6 Class Distribution -------------------- 100% | Mutant Dominant Class ---------------- Mutant | -10/Materials Resources | -11 -10 ----------- Run | Scr Mat Matter Collected 283 | 168 115 Remotely . | . . Salvage Created 391 | . 391 Parts 27 | . 27 Haulers Intercepted 1 | . 1 Recyclers Shooed . | . . Parts Field Recycled . | . . Retrieved Matter . | . . Parts Self-Destructed . | . . Prevented . | . . Kills | -11 -10 ------- Run | Scr Mat Combat Hostiles Destroyed 9 | . 9 Guns 9 | . 9 Classes Destroyed 5 | . 5 Worker 1 | . 1 Builder 1 | . 1 Hauler 1 | . 1 Swarmer 3 | . 3 Grunt 6 | . 6 Best Kill Streak 5 | . 5 Combat Bots Only 4 | . 4 Max Kills in Single Turn 1 | . 1 Gunslinging . | . . Exploded . | . . Melee . | . . Uniques/NPCs Destroyed . | . . Combat | -11 -10 -------- Run | Scr Mat Damage Taken 853 | . 853 Core 255 | . 255 Absorbed by Shields . | . . Core Remaining (%) 100 | 100 . Volleys Fired 38 | . 38 Largest 2 | . 2 Hottest 90 | . 90 Shots Fired 70 | . 70 Gun 70 | . 70 Cannon . | . . Launcher . | . . Special . | . . Kinetic 27 | . 27 Thermal 32 | . 32 Explosive . | . . Electromagnetic 11 | . 11 Robot Hit Streak 7 | . 7 Robot Miss Streak 3 | . 3 Penetration Max . | . . Secondary Targets 2 | . 2 Max Gunslinging Chain 1 | . 1 Shots Hit Robots 44 | . 44 Core Hits 20 | . 20 Critical Kills . | . . Critical Parts Destroyed . | . . Critical Strikes 3 | . 3 Burn 3 | . 3 Melee Attacks . | . . Impact . | . . Slashing . | . . Piercing . | . . Sneak Attacks . | . . Combat Hostiles . | . . Follow-up Attacks . | . . Damage Inflicted 718 | . 718 Guns 646 | . 646 Cannons . | . . Explosions 72 | . 72 Melee . | . . Ramming . | . . Kinetic 226 | . 226 Thermal 360 | . 360 Explosive . | . . Electromagnetic 132 | . 132 Impact . | . . Slashing . | . . Piercing . | . . Highest Corruption . | . . Average Corruption . | . . Corruption Purged . | . . Overload Shots . | . . Overflow Damage 23 | . 23 Projectiles . | . . Explosions 23 | . 23 Melee . | . . Knockbacks . | . . Impact . | . . Kinetic . | . . Secondary . | . . Self-Inflicted Damage 27 | . 27 Shots 1 | . 1 Rammed . | . . Targets Rammed . | . . Kicked . | . . Crushed . | . . Highest Temperature 357 | . 357 Average Temperature 142 | . 142 Received Heat Transfer 429 | . 429 Effects 3 | . 3 Interference 3 | . 3 Siege Activations . | . . Robots Corrupted . | . . Combat Hostiles . | . . Parts Fried . | . . Impact Corruptions . | . . Robots Melted . | . . Combat Hostiles . | . . Parts Melted 2 | . 2 Heat Transferred 1062 | . 1062 Parts Sabotaged . | . . Parts Stolen . | . . Parts Stripped . | . . Power Chain Reactions 1 | . 1 Missiles Intercepted . | . . Alert | -11 -10 ------- Run | Scr Mat Peak Influence 206 | . 206 Initial . | . . Average 55 | . 55 Maximum Alert Level 1 | . 1 Low Security (%) 98 | . 98 Level 1 1 | . 1 Level 2 . | . . Level 3 . | . . Level 4 . | . . Level 5 . | . . High Security . | . . Max Security . | . . Squads Dispatched 1 | . 1 Investigation . | . . Extermination . | . . Reinforcement 1 | . 1 Assault . | . . Garrison . | . . Intercept . | . . Construction Impeded . | . . Haulers Reinforced . | . . Active Scanning Responses . | . . Cargo Convoy Interrupts . | . . Stealth | -11 -10 --------- Run | Scr Mat Distress Signals 3 | . 3 Communications Jammed . | . . Distress Signals . | . . Times Spotted 19 | . 19 Peak Tracking Total 6 | . 6 Tactical Retreats 1 | . 1 Traps | -11 -10 ------- Run | Scr Mat Traps Triggered . | . . Indirectly . | . . Trap Hack Attempts . | . . Triggered . | . . Disarmed . | . . Reprogrammed . | . . Reused . | . . Traps Extracted . | . . Installed . | . . Triggered . | . . Machines | -11 -10 ---------- Run | Scr Mat Machines Disabled . | . . Max in Single Turn . | . . Machines Sabotaged . | . . Garrisons Compromised . | . . Overloaded Fab Kills . | . . Hacking | -11 -10 --------- Run | Scr Mat Machines Accessed 4 | . 4 Terminals 4 | . 4 Fabricators . | . . Repair Stations . | . . Recycling Units . | . . Scanalyzers . | . . Garrison Access . | . . Total Hacks 8 | . 8 Successful 4 | . 4 Failed 4 | . 4 Catastrophic . | . . Database Lockouts . | . . Manual 4 | . 4 Terminals 8 | . 8 Fabricators . | . . Repair Stations . | . . Recycling Units . | . . Scanalyzers . | . . Garrison Access . | . . Terminal Hacks 3 | . 3 Robot Analysis 2 | . 2 Zone Layout 1 | . 1 Fabricator Hacks . | . . Repair Station Hacks . | . . Recycling Unit Hacks . | . . Scanalyzer . | . . Garrison Access Hacks . | . . Unauthorized Hacks 1 | . 1 Terminals 1 | . 1 Botnet 1 | . 1 Fabricators . | . . Repair Stations . | . . Recycling Units . | . . Scanalyzers . | . . Garrison Access . | . . Data Cores Recovered . | . . Used . | . . Hacking Detections 3 | . 3 Full Trace Events . | . . Feedback Events . | . . Feedback Blocked . | . . Robot Schematics Acquired . | . . Robots Built . | . . Authchips . | . . Time . | . . Total Robot Build Rating . | . . Part Schematics Acquired . | . . Parts Built . | . . Authchips . | . . Time . | . . Total Part Build Rating . | . . Parts Repaired . | . . Time . | . . Parts Recycled . | . . Recycled Matter . | . . Retrieved Matter . | . . Retrieved Components . | . . Parts Scanalyzed . | . . Part Schematics Acquired . | . . Parts Damaged . | . . Bothacking | -11 -10 ------------ Run | Scr Mat Used RIF Installer . | . . Robots Hacked . | . . Non-combat . | . . Combat . | . . Robot Hacks Applied . | . . Relay Couplers Released . | . . Fabnet Peak Effective % . | . . Robots Rewired . | . . Allies Hacked . | . . Hacks Repelled . | . . Allies | -11 -10 -------- Run | Scr Mat Total Allies . | . . Largest Group . | . . Highest-Rated Group . | . . Highest-Rated Ally . | . . Total Orders . | . . Ally Attacks . | . . Total Damage . | . . Kills . | . . Allies Corrupted . | . . Allies Melted . | . . Intel | -11 -10 ------- Run | Scr Mat Robot Analysis Total 2 | . 2 Derelict Logs Recovered . | . . Drone Launches . | . . Drone Recoveries . | . . Exploration | -11 -10 ------------- Run | Scr Mat Turns Passed 461 | . 461 Spaces Moved 266 | 1 265 Core 1 | . 1 Treads . | . . Legs 265 | 1 264 Wheels . | . . Hover . | . . Flight . | . . Fastest Speed 100 | 120 100 Average Speed 119 | 120 119 Slowest Speed 120 | 120 120 Overloaded Moves . | . . Propulsion Burnouts . | . . Robots Hopped . | . . Cave-ins Triggered . | . . Exploration Rate (%) 29 | 2 57 Regions Visited 1 Branch Regions . Pre-discovered Areas . | . . Known Exits Taken . | . . Unknown Exits Taken 1 | 1 . Scrap Searched . | . . Spaces Dug . | . . Terrain Destroyed 3 | . 3 Melee . | . . Projectile . | . . AOE 3 | . 3 Terrain Rammed . | . . Walls Destroyed . | . . Machines Disabled . | . . Actions | -11 -10 --------- Run | Scr Mat Total 338 | . 338 Wait 29 | . 29 Move 265 | . 265 Hop . | . . Pick Up 1 | . 1 Fast Attach . | . . Attach 2 | . 2 Detach . | . . Swap 2 | . 2 Drop 1 | . 1 Fire 38 | . 38 Melee . | . . Ram . | . . Kick . | . . Crush . | . . Escape Stasis . | . . Rewire . | . . Trap . | . . Miscellaneous . | . . Route ------- -11/Scrapyard -10/Materials (discovered 3 exits: [*Mat] / [*Min x2]) History --------- Turn | Location | Event 1 | -11/Scrapyard | Discovered new exit (range 0) 1 | -11/Scrapyard | Entered Materials 263 | -10/Materials | Discovered new exit (range 7) 303 | -10/Materials | Build established: Mutant 308 | -10/Materials | Discovered new exit (range 6) 352 | -10/Materials | Discovered new exit (range 20) 430 | -10/Materials | Core integrity fell below 50% 451 | -10/Materials | Lost 3 parts (1n2w) 457 | -10/Materials | Core integrity fell below 20% 462 | -10/Materials | Destroyed by G-34 Mercenary with Small Laser Last Messages --------------- 00437_ Med. Laser temporarily disabled. 00437_ K-01 Serf collects debris. 00440_ K-01 Serf destroyed. 00441_ K-01 Serf collects debris. 00451_ R-06 Scavenger collects Terrain Scanner. 00453_ K-01 Serf collects debris. 00454_ R-06 Scavenger collects Wheel. 00456_ K-01 Serf collects debris. 00458_ R-06 Scavenger collects Welding Torch. 00459_ Chain reaction triggered in Ion Engine. 00459_ Med. Laser destroyed. 00459_ Destroyed Med. Laser. 00459_ EM Pulse Gun destroyed. 00459_ Destroyed EM Pulse Gun. 00459_ Ion Engine destroyed. 00459_ Destroyed Ion Engine. 00459_ Aluminum Leg destroyed. 00459_ Destroyed Aluminum Leg. 00460_ K-01 Serf collects debris. 00461_ R-06 Scavenger collects Wheel. Map ----- +----------------------------------------------------+ | # """ #######??## ??????? | | ####+############## + """ # ##### ??????? | | #% #????????# # # ??????? | | ] #"" #????????# # # ??????? | | #"T #????????# # # ??????? | | "" #"" #??####### ######### ##+####??????? | | "" # #?? # ########## ## ##??????? | | "" # #?? """ # # T #?# ## ##??????? | | # #?? """ + / #?# ## ##??????? | | # #?? """ # # """ #?# ## ##??????? | | #### """ #?? # # """ #?# ## ##??????? | | # """ #?? # #%*""" #?# ## ##??????? | | # """ #??####### #=%*% #?# ########??????? | | + #????????# ##+#####?# ?????? | | % #######????????# [####### ?????? | | #??????????????#a = ?????? | | +################## #### #############??????? | | #??# #???????????#??????? | | #??# #???????????#??????? | | #??# #???????????#??????? | | ### ########### #?##/###?????????#??????? | | ###+########### #?# ###########??????? | | # # =### # #??????? | | %# # !%#;# =#????????????????? | | + # *k ;g #????????????????? | | #= # g % @%g #????????????????? | | # # ^ !] r [; #????????????????? | | ############### %]! k # #????????????????? | | # #????#T ] # #????????????????? | | # """ #????## ^ # #????????????????? | | # """ #?????# ######????????????????? | | # """ #?????# ^ #?????????????????????? | | # """ #?????# """ #?????????????????????? | | # #?????# """ #?????????????????????? | | + """ #?????# """ #?????????????????????? | | # """ #?????+??? ?????????????????????? | | # """ #????????? #?????????????????????? | | # """ #????????? ##+###?????????????????????? | | # #????????? ? ????????????????????????? | | #########?????????? ??"????????????????????????? | | #??????????????????????????????????????????????? | | #??????????????????????????????????????????????? | | #??????????????????????????????????????????????? | | #??????????????????????????????????????????????? | | #??????????????????????????????????????????????? | | #??????????????????????????????????????????????? | | #??????????????????????????????????????????????? | | #??????????????????????????????????????????????? | | #??????????????????????????????????????????????? | | #??????????????????????????????????????????????? | +----------------------------------------------------+ Best States ------------- Heat Dissipation 25 Energy Generation 10 Energy Capacity 250 Matter Stores 300 Matter Capacity 300 Sight Range 16 Terrain Scan Density 10 Evasion (%) 55 Item Schematics ----------------- None Robot Schematics ------------------ None Fabricated ------------ Nothing Alien Tech Used ----------------- None Achievements -------------- None Challenges ------------ None Game ------ Seed InertialTerrabombUnit Manual? 0 Play Time 00:08:25 Cumulative 182.2 hours Start 2021.12.10 @ 11:17:42 End 2021.12.10 @ 11:25:41 Sessions 1 Manual Loads 0 Difficulty Rogue Special Mode None Game No. 249 Rogue 249 Adventurer 0 Explorer 0 Win Type - Total 2 Types 2/0/0/0/0/0/0/0/0 Lore% 60 Gallery% 73 Achievement% 51 Wizard Run 0 Options --------- ASCII 0 Keyboard 1 Movement Vi Keybinds 0 Fullscreen 1 Font 18/SmallcapsGlow Map View 76x50 Tactical HUD 1 Map Filters NONE Filters NONE Steam 1 RUN: 8dfa6183-8686-4fb7-b082-a2961620c4e0